{"text_format":"1","workbook":"xlsx","n_sheets":4,"sheets":["Макрос1","10.12.2016","11.12.2016","12.12.2016"],"not_rendered":{"charts":0,"images":0,"macros":0,"external_links":0,"defined_names":3,"comments":0,"pivot_tables":0},"unopened":[],"bounds":{"document_bytes":16777216,"sheet_cells":100000,"rows_first":2000,"rows_last":500,"rows_between":2000,"halvings":0,"cell_chars":16384,"cell_head_chars":4096},"cells_cut":0,"cells_raw":0,"read":"whole","date_system":"1900"}

{"sheet":"Макрос1","index":0,"n_rows":7,"n_cols":1,"rows_kept":7,"cut":false,"hidden":true,"merged":[]}
[{"$f":"ARGUMENT(\"cell\",8)","v":true}]
[{"$f":"CELL(\"имяФайла\",cell)","v":"C:\\Users\\1\\Desktop\\[9894033-2.xlsm]12.12.2016"}]
[{"$f":"SEARCH(\"[\",A2)","v":20}]
[{"$f":"MID(A2,A3+1,MMULT(SEARCH({\"]\",\"[\"},A2),{1;-1})-1)","v":"9894033-2.xlsm"}]
[{"$f":"SET.NAME(\"листы\",GET.WORKBOOK(1,A4))","v":true}]
[{"$f":"\"'\"&INDEX(листы,MATCH(REPLACE(A2,1,A3-1,),листы)-1)&\"'!A2:I999\"","v":"'[9894033-2.xlsm]11.12.2016'!A2:I999"}]
[{"$f":"RETURN(VLOOKUP(cell,TEXTREF(FORMULA.CONVERT(A6,1,0,1)),9,))","v":true}]

{"sheet":"10.12.2016","index":1,"n_rows":2,"n_cols":12,"rows_kept":2,"cut":false,"hidden":false,"merged":[]}
["Название","Цена (розн.)","Количество товара на  начало смены","Возврат товара на склад","Продано через КАССУ","Передано Курьеру","Передано на Почту","Всего продано (шт.)","Количество товара на конец смены","В кассе наличных (руб.)","Выбито чеков за товар на сумму","Выручка (общ.)"]
["Товар",1000,100,1,1,1,1,{"$f":"E2+F2+G2","v":3},{"$f":"C2+D2-H2","v":98},{"$f":"B2*E2","v":1000},{"$f":"(E2*B2)+(F2*B2)","v":2000},{"$f":"H2*B2","v":3000}]

{"sheet":"11.12.2016","index":2,"n_rows":2,"n_cols":12,"rows_kept":2,"cut":false,"hidden":false,"merged":[]}
["Наименование","Цена (розн.)","Количество товара на  начало смены","Возврат товара на склад","Продано через КАССУ","Передано Курьеру","Передано на Почту","Всего продано (шт.)","Количество товара на конец смены","В кассе наличных (руб.)","Выбито чеков за товар на сумму","Выручка (общ.)"]
["Товар",1000,{"$f":"НачалоСмены(A2)","v":98},1,1,1,1,10,{"$f":"C2+D2-H2","v":89},{"$f":"B2*E2","v":1000},{"$f":"(E2*B2)+(F2*B2)","v":2000},{"$f":"H2*B2","v":10000}]

{"sheet":"12.12.2016","index":3,"n_rows":2,"n_cols":12,"rows_kept":2,"cut":false,"hidden":false,"merged":[]}
["Наименование","Цена (розн.)","Количество товара на  начало смены","Возврат товара на склад","Продано через КАССУ","Передано Курьеру","Передано на Почту","Всего продано (шт.)","Количество товара на конец смены","В кассе наличных (руб.)","Выбито чеков за товар на сумму","Выручка (общ.)"]
["Товар",1000,{"$f":"НачалоСмены(A2)","v":89},1,1,1,1,{"$f":"E2+F2+G2","v":3},{"$f":"C2+D2-H2","v":87},{"$f":"B2*E2","v":1000},{"$f":"(E2*B2)+(F2*B2)","v":2000},{"$f":"H2*B2","v":3000}]